[Event "Titled Tuesday Blitz July 4 Early 2023"]
[White "Vifleemskaia, Svetlana"]
[Black "Warchol, Kamil"]
[WhiteFideId "4129490"]
[BlackFideId "21858241"]
[WhiteElo "2319"]
[BlackElo "2231"]
[Result "1/2-1/2"]
[Round "5"]
[TimeControl "180+2"]
[Date "2023.07.04"]
[WhiteClock "0:00:13"]
[BlackClock "0:00:07"]
[Board "203"]

1. d4 {[%clk 0:03:00]}  Nf6 {[%clk 0:02:02]} 2. c4 {[%clk 0:02:59]}  e6 {[%clk 0:02:02]} 3. Nc3 {[%clk 0:02:58]}  Bb4 {[%clk 0:02:03]} 4. e3 {[%clk 0:02:58]}  O-O {[%clk 0:01:39]} 5. Ne2 {[%clk 0:02:59]}  c6 {[%clk 0:01:36]} 6. a3 {[%clk 0:03:00]}  Ba5 {[%clk 0:01:35]} 7. b4 {[%clk 0:03:00]}  Bc7 {[%clk 0:01:35]} 8. f4 {[%clk 0:02:59]}  d5 {[%clk 0:01:13]} 9. Ng3 {[%clk 0:02:55]}  a5 {[%clk 0:01:11]} 10. Bd2 {[%clk 0:02:51]}  Nbd7 {[%clk 0:01:06]} 11. c5 {[%clk 0:02:44]}  b6 {[%clk 0:00:57]} 12. Bd3 {[%clk 0:02:41]}  bxc5 {[%clk 0:00:56]} 13. bxc5 {[%clk 0:02:40]}  Ba6 {[%clk 0:00:57]} 14. Qe2 {[%clk 0:02:38]}  Bxd3 {[%clk 0:00:55]} 15. Qxd3 {[%clk 0:02:39]}  Qc8 {[%clk 0:00:56]} 16. O-O {[%clk 0:02:34]}  Qa6 {[%clk 0:00:57]} 17. Qxa6 {[%clk 0:02:33]}  Rxa6 {[%clk 0:00:57]} 18. a4 {[%clk 0:02:24]}  Rb8 {[%clk 0:00:56]} 19. Rab1 {[%clk 0:02:23]}  Raa8 {[%clk 0:00:45]} 20. Rxb8+ {[%clk 0:02:14]}  Rxb8 {[%clk 0:00:44]} 21. Rb1 {[%clk 0:02:15]}  Ne8 {[%clk 0:00:30]} 22. Kf2 {[%clk 0:02:13]}  f6 {[%clk 0:00:30]} 23. Ke2 {[%clk 0:01:57]}  e5 {[%clk 0:00:30]} 24. Kd3 {[%clk 0:01:56]}  Kf7 {[%clk 0:00:23]} 25. Rxb8 {[%clk 0:01:43]}  Nxb8 {[%clk 0:00:21]} 26. Nce2 {[%clk 0:01:14]}  Na6 {[%clk 0:00:18]} 27. Nc1 {[%clk 0:01:14]}  g6 {[%clk 0:00:17]} 28. Nb3 {[%clk 0:01:12]}  Nb4+ {[%clk 0:00:17]} 29. Bxb4 {[%clk 0:01:08]}  axb4 {[%clk 0:00:18]} 30. a5 {[%clk 0:01:08]}  exf4 {[%clk 0:00:17]} 31. exf4 {[%clk 0:01:04]}  Bxf4 {[%clk 0:00:18]} 32. a6 {[%clk 0:01:03]}  Bb8 {[%clk 0:00:19]} 33. Na5 {[%clk 0:01:03]}  Nc7 {[%clk 0:00:16]} 34. a7 {[%clk 0:00:57]}  Bxa7 {[%clk 0:00:16]} 35. Nxc6 {[%clk 0:00:57]}  Nb5 {[%clk 0:00:16]} 36. Nxb4 {[%clk 0:00:56]}  Ke6 {[%clk 0:00:17]} 37. Ne2 {[%clk 0:00:51]}  Bb8 {[%clk 0:00:16]} 38. Nc6 {[%clk 0:00:47]}  Bxh2 {[%clk 0:00:15]} 39. Nc3 {[%clk 0:00:42]}  Nxc3 {[%clk 0:00:13]} 40. Kxc3 {[%clk 0:00:43]}  h5 {[%clk 0:00:11]} 41. Kd3 {[%clk 0:00:36]}  g5 {[%clk 0:00:11]} 42. Nb4 {[%clk 0:00:27]}  g4 {[%clk 0:00:11]} 43. Ke3 {[%clk 0:00:26]}  h4 {[%clk 0:00:11]} 44. Nc2 {[%clk 0:00:26]}  Bc7 {[%clk 0:00:10]} 45. Kf2 {[%clk 0:00:16]}  Bg3+ {[%clk 0:00:10]} 46. Ke3 {[%clk 0:00:16]}  h3 {[%clk 0:00:08]} 47. gxh3 {[%clk 0:00:15]}  gxh3 {[%clk 0:00:09]} 48. Kf3 {[%clk 0:00:16]}  Bc7 {[%clk 0:00:08]} 49. Ne3 {[%clk 0:00:15]}  Ba5 {[%clk 0:00:04]} 50. Kg3 {[%clk 0:00:14]}  Bc3 {[%clk 0:00:05]} 51. Nc2 {[%clk 0:00:14]}  Kf5 {[%clk 0:00:04]} 52. Kxh3 {[%clk 0:00:13]}  Ke4 {[%clk 0:00:05]} 53. c6 {[%clk 0:00:13]}  Ba5 {[%clk 0:00:05]} 54. Kg4 {[%clk 0:00:13]}  Kd3 {[%clk 0:00:05]} 55. Na3 {[%clk 0:00:11]}  Kxd4 {[%clk 0:00:05]} 56. Nb5+ {[%clk 0:00:10]}  Kc5 {[%clk 0:00:04]} 57. c7 {[%clk 0:00:11]}  Bxc7 {[%clk 0:00:04]} 58. Nxc7 {[%clk 0:00:11]}  d4 {[%clk 0:00:05]} 59. Ne6+ {[%clk 0:00:11]}  Kd5 {[%clk 0:00:05]} 60. Nxd4 {[%clk 0:00:12]}  Kxd4 {[%clk 0:00:06]} 61. Kf5 {[%clk 0:00:12]}  Kc4 {[%clk 0:00:07]} 62. Kxf6 {[%clk 0:00:13]} 1/2-1/2


[Site "https://www.chess.com"]

[Event "Titled Tuesday Blitz July 4 Early 2023"]
[White "Csonka, Balazs"]
[Black "Ivanova, Karina"]
[WhiteFideId "742910"]
[BlackFideId "24139750"]
[WhiteElo "2734"]
[BlackElo "2194"]
[Result "1/2-1/2"]
[Round "5"]
[TimeControl "180+2"]
[Date "2023.07.04"]
[WhiteClock "0:00:02"]
[BlackClock "0:00:45"]
[Board "208"]

1. e4 {[%clk 0:03:00]}  c6 {[%clk 0:02:55]} 2. Nf3 {[%clk 0:02:55]}  d5 {[%clk 0:02:54]} 3. exd5 {[%clk 0:02:56]}  cxd5 {[%clk 0:02:54]} 4. Ne5 {[%clk 0:02:56]}  Nc6 {[%clk 0:02:53]} 5. Bb5 {[%clk 0:02:55]}  Bd7 {[%clk 0:02:53]} 6. Nxd7 {[%clk 0:02:55]}  Qxd7 {[%clk 0:02:52]} 7. d4 {[%clk 0:02:52]}  Nf6 {[%clk 0:02:51]} 8. c3 {[%clk 0:02:50]}  e6 {[%clk 0:02:51]} 9. O-O {[%clk 0:02:50]}  Bd6 {[%clk 0:02:49]} 10. Nd2 {[%clk 0:02:47]}  O-O {[%clk 0:02:48]} 11. Bd3 {[%clk 0:02:43]}  Rab8 {[%clk 0:02:45]} 12. Qe2 {[%clk 0:02:30]}  a6 {[%clk 0:02:42]} 13. f4 {[%clk 0:02:20]}  g6 {[%clk 0:02:35]} 14. Nf3 {[%clk 0:02:17]}  b5 {[%clk 0:02:34]} 15. Ne5 {[%clk 0:02:00]}  Qc7 {[%clk 0:02:33]} 16. Rf3 {[%clk 0:01:56]}  b4 {[%clk 0:02:23]} 17. Bxa6 {[%clk 0:01:37]}  bxc3 {[%clk 0:02:19]} 18. bxc3 {[%clk 0:01:18]}  Ne4 {[%clk 0:02:17]} 19. Qe1 {[%clk 0:01:02]}  Qb6 {[%clk 0:02:13]} 20. Bd3 {[%clk 0:00:54]}  Bxe5 {[%clk 0:01:57]} 21. fxe5 {[%clk 0:00:55]}  Nxe5 {[%clk 0:01:54]} 22. Bxe4 {[%clk 0:00:48]}  dxe4 {[%clk 0:01:49]} 23. Rh3 {[%clk 0:00:46]}  f5 {[%clk 0:01:38]} 24. Bf4 {[%clk 0:00:31]}  Nd3 {[%clk 0:01:33]} 25. Rxd3 {[%clk 0:00:31]}  exd3 {[%clk 0:01:33]} 26. Bxb8 {[%clk 0:00:31]}  Rxb8 {[%clk 0:01:33]} 27. Rd1 {[%clk 0:00:29]}  Qa6 {[%clk 0:01:26]} 28. Qd2 {[%clk 0:00:26]}  Qa3 {[%clk 0:01:14]} 29. h4 {[%clk 0:00:15]}  Rb2 {[%clk 0:01:12]} 30. Qxd3 {[%clk 0:00:16]}  Qxa2 {[%clk 0:01:12]} 31. Qg3 {[%clk 0:00:17]}  Rd2 {[%clk 0:01:00]} 32. Re1 {[%clk 0:00:13]}  Re2 {[%clk 0:00:59]} 33. Rf1 {[%clk 0:00:08]}  Qd2 {[%clk 0:00:50]} 34. h5 {[%clk 0:00:05]}  Kg7 {[%clk 0:00:48]} 35. hxg6 {[%clk 0:00:05]}  hxg6 {[%clk 0:00:48]} 36. Qc7+ {[%clk 0:00:04]}  Kh6 {[%clk 0:00:45]} 37. Qh2+ {[%clk 0:00:05]}  Kg7 {[%clk 0:00:45]} 38. Qc7+ {[%clk 0:00:04]}  Kh6 {[%clk 0:00:45]} 39. Qh2+ {[%clk 0:00:02]}  Kg7 {[%clk 0:00:45]} 40. Qc7+ {[%clk 0:00:02]} 1/2-1/2


[Site "https://www.chess.com"]

[Event "Titled Tuesday Blitz July 4 Early 2023"]
[White "Karwowski, Kacper"]
[Black "Mishra, Manoj"]
[WhiteFideId "1126032"]
[BlackFideId "5006007"]
[WhiteElo "2566"]
[BlackElo "2193"]
[Result "0-1"]
[Round "5"]
[TimeControl "180+2"]
[Date "2023.07.04"]
[WhiteClock "0:00:21"]
[BlackClock "0:00:24"]
[Board "209"]

1. e4 {[%clk 0:03:00]}  g6 {[%clk 0:02:51]} 2. d4 {[%clk 0:02:51]}  Bg7 {[%clk 0:02:47]} 3. Nf3 {[%clk 0:02:51]}  d6 {[%clk 0:02:44]} 4. Bc4 {[%clk 0:02:51]}  Nf6 {[%clk 0:02:40]} 5. Qe2 {[%clk 0:02:51]}  O-O {[%clk 0:02:39]} 6. O-O {[%clk 0:02:47]}  Nc6 {[%clk 0:02:21]} 7. h3 {[%clk 0:02:31]}  e5 {[%clk 0:02:14]} 8. dxe5 {[%clk 0:02:28]}  Nxe5 {[%clk 0:02:11]} 9. Nxe5 {[%clk 0:02:19]}  dxe5 {[%clk 0:02:12]} 10. Nc3 {[%clk 0:02:20]}  c6 {[%clk 0:02:12]} 11. a4 {[%clk 0:02:13]}  Qe7 {[%clk 0:02:02]} 12. Bb3 {[%clk 0:02:10]}  Be6 {[%clk 0:02:00]} 13. Bg5 {[%clk 0:01:50]}  Bxb3 {[%clk 0:01:57]} 14. cxb3 {[%clk 0:01:51]}  Qe6 {[%clk 0:01:51]} 15. Bxf6 {[%clk 0:01:50]}  Bxf6 {[%clk 0:01:49]} 16. Qc4 {[%clk 0:01:51]}  Qxc4 {[%clk 0:01:47]} 17. bxc4 {[%clk 0:01:52]}  Rfd8 {[%clk 0:01:46]} 18. Rfd1 {[%clk 0:01:51]}  Be7 {[%clk 0:01:44]} 19. Rxd8+ {[%clk 0:01:46]}  Rxd8 {[%clk 0:01:43]} 20. Rd1 {[%clk 0:01:47]}  Rxd1+ {[%clk 0:01:32]} 21. Nxd1 {[%clk 0:01:48]}  Bc5 {[%clk 0:01:32]} 22. Kf1 {[%clk 0:01:39]}  Bd4 {[%clk 0:01:30]} 23. b3 {[%clk 0:01:32]}  Kf8 {[%clk 0:01:30]} 24. Ke2 {[%clk 0:01:27]}  Ke7 {[%clk 0:01:27]} 25. Ne3 {[%clk 0:01:28]}  Kd6 {[%clk 0:01:22]} 26. Nc2 {[%clk 0:01:24]}  Kc5 {[%clk 0:01:21]} 27. f3 {[%clk 0:01:24]}  f5 {[%clk 0:01:15]} 28. Kd3 {[%clk 0:01:24]}  Bf2 {[%clk 0:01:13]} 29. b4+ {[%clk 0:01:22]}  Kd6 {[%clk 0:01:13]} 30. c5+ {[%clk 0:01:22]}  Ke6 {[%clk 0:01:12]} 31. Ke2 {[%clk 0:01:22]}  Bd4 {[%clk 0:00:55]} 32. Nxd4+ {[%clk 0:01:01]}  exd4 {[%clk 0:00:56]} 33. exf5+ {[%clk 0:00:59]}  gxf5 {[%clk 0:00:54]} 34. f4 {[%clk 0:00:56]}  h5 {[%clk 0:00:51]} 35. Kd3 {[%clk 0:00:54]}  Kd5 {[%clk 0:00:50]} 36. g3 {[%clk 0:00:46]}  b6 {[%clk 0:00:43]} 37. cxb6 {[%clk 0:00:45]}  axb6 {[%clk 0:00:41]} 38. a5 {[%clk 0:00:46]}  bxa5 {[%clk 0:00:40]} 39. bxa5 {[%clk 0:00:47]}  c5 {[%clk 0:00:40]} 40. g4 {[%clk 0:00:41]}  c4+ {[%clk 0:00:35]} 41. Ke2 {[%clk 0:00:40]}  fxg4 {[%clk 0:00:26]} 42. hxg4 {[%clk 0:00:29]}  hxg4 {[%clk 0:00:27]} 43. f5 {[%clk 0:00:27]}  d3+ {[%clk 0:00:26]} 44. Ke3 {[%clk 0:00:27]}  g3 {[%clk 0:00:26]} 45. a6 {[%clk 0:00:24]}  Kc6 {[%clk 0:00:25]} 46. f6 {[%clk 0:00:23]}  g2 {[%clk 0:00:25]} 47. Kf2 {[%clk 0:00:23]}  d2 {[%clk 0:00:25]} 48. f7 {[%clk 0:00:23]}  d1=Q {[%clk 0:00:24]} 49. f8=Q {[%clk 0:00:21]}  g1=Q# {[%clk 0:00:24]} 0-1


[Site "https://www.chess.com"]

[Event "Titled Tuesday Blitz July 4 Early 2023"]
[White "Allam, Yara"]
[Black "Coelho, Ramyres Santana"]
[WhiteFideId "10615709"]
[BlackFideId "2120690"]
[WhiteElo "2062"]
[BlackElo "2295"]
[Result "0-1"]
[Round "5"]
[TimeControl "180+2"]
[Date "2023.07.04"]
[WhiteClock "0:00:47"]
[BlackClock "0:01:53"]
[Board "214"]

1. e4 {[%clk 0:03:00]}  c5 {[%clk 0:02:59]} 2. Nf3 {[%clk 0:03:00]}  d6 {[%clk 0:03:00]} 3. d4 {[%clk 0:03:01]}  cxd4 {[%clk 0:03:01]} 4. Nxd4 {[%clk 0:03:01]}  Nf6 {[%clk 0:03:02]} 5. Nc3 {[%clk 0:03:02]}  a6 {[%clk 0:03:02]} 6. f3 {[%clk 0:03:02]}  e6 {[%clk 0:03:03]} 7. Be3 {[%clk 0:03:02]}  b5 {[%clk 0:03:03]} 8. Qd2 {[%clk 0:03:02]}  Bb7 {[%clk 0:03:04]} 9. g4 {[%clk 0:03:02]}  h6 {[%clk 0:03:02]} 10. h4 {[%clk 0:03:00]}  b4 {[%clk 0:03:02]} 11. Na4 {[%clk 0:02:52]}  Nc6 {[%clk 0:03:00]} 12. Nxc6 {[%clk 0:02:45]}  Bxc6 {[%clk 0:03:01]} 13. Nb6 {[%clk 0:02:41]}  Rb8 {[%clk 0:02:59]} 14. Qf2 {[%clk 0:02:34]}  d5 {[%clk 0:02:54]} 15. e5 {[%clk 0:02:32]}  Nd7 {[%clk 0:02:53]} 16. Nxd7 {[%clk 0:02:29]}  Qxd7 {[%clk 0:02:54]} 17. Bxa6 {[%clk 0:02:25]}  Be7 {[%clk 0:02:48]} 18. Bd3 {[%clk 0:02:20]}  f6 {[%clk 0:02:45]} 19. Bg6+ {[%clk 0:02:15]}  Kf8 {[%clk 0:02:38]} 20. Bd4 {[%clk 0:02:08]}  Bb5 {[%clk 0:02:33]} 21. f4 {[%clk 0:02:02]}  Rc8 {[%clk 0:02:24]} 22. f5 {[%clk 0:01:57]}  Qc6 {[%clk 0:02:10]} 23. Rc1 {[%clk 0:01:48]}  exf5 {[%clk 0:02:07]} 24. Bxf5 {[%clk 0:01:44]}  Re8 {[%clk 0:02:06]} 25. Rg1 {[%clk 0:01:37]}  Kg8 {[%clk 0:02:05]} 26. Bg6 {[%clk 0:01:35]}  Rf8 {[%clk 0:02:02]} 27. Qd2 {[%clk 0:01:20]}  fxe5 {[%clk 0:02:00]} 28. Bxe5 {[%clk 0:01:12]}  Qxg6 {[%clk 0:01:59]} 29. Qxd5+ {[%clk 0:01:11]}  Qf7 {[%clk 0:01:55]} 30. Qxb5 {[%clk 0:00:57]}  Qf2+ {[%clk 0:01:54]} 31. Kd1 {[%clk 0:00:47]}  Rd8+ {[%clk 0:01:53]} 0-1


[Site "https://www.chess.com"]

[Event "Titled Tuesday Blitz July 4 Early 2023"]
[White "Tuleyeva-Aketayeva, Dana"]
[Black "NtcPou"]
[WhiteFideId "13701932"]
[WhiteElo "2242"]
[BlackElo "2040"]
[Result "1-0"]
[Round "5"]
[TimeControl "180+2"]
[Date "2023.07.04"]
[WhiteClock "0:00:34"]
[BlackClock "0:00:40"]
[Board "216"]

1. d4 {[%clk 0:03:00]}  d5 {[%clk 0:02:57]} 2. Nf3 {[%clk 0:03:01]}  c6 {[%clk 0:02:56]} 3. g3 {[%clk 0:03:02]}  Nf6 {[%clk 0:02:55]} 4. Bg2 {[%clk 0:03:02]}  a6 {[%clk 0:02:54]} 5. O-O {[%clk 0:03:03]}  g6 {[%clk 0:02:53]} 6. c4 {[%clk 0:03:04]}  b5 {[%clk 0:02:51]} 7. cxd5 {[%clk 0:03:01]}  cxd5 {[%clk 0:02:51]} 8. a3 {[%clk 0:03:00]}  Bg7 {[%clk 0:02:51]} 9. Nc3 {[%clk 0:03:00]}  O-O {[%clk 0:02:50]} 10. Ne5 {[%clk 0:03:01]}  Be6 {[%clk 0:02:50]} 11. Bg5 {[%clk 0:02:57]}  h6 {[%clk 0:02:37]} 12. Be3 {[%clk 0:02:55]}  g5 {[%clk 0:02:27]} 13. Qd2 {[%clk 0:02:52]}  Ra7 {[%clk 0:02:18]} 14. h4 {[%clk 0:02:51]}  gxh4 {[%clk 0:02:16]} 15. Bxh6 {[%clk 0:02:51]}  hxg3 {[%clk 0:02:14]} 16. Qg5 {[%clk 0:02:45]}  Ne8 {[%clk 0:02:05]} 17. Qxg3 {[%clk 0:02:22]}  Kh7 {[%clk 0:02:01]} 18. Bxg7 {[%clk 0:02:18]}  Nxg7 {[%clk 0:02:02]} 19. Qh4+ {[%clk 0:02:08]}  Kg8 {[%clk 0:02:00]} 20. Bf3 {[%clk 0:02:01]}  Bf5 {[%clk 0:01:54]} 21. Nxd5 {[%clk 0:01:53]}  Be6 {[%clk 0:01:29]} 22. Nf4 {[%clk 0:01:23]}  Qxd4 {[%clk 0:01:28]} 23. Ned3 {[%clk 0:01:06]}  Bf5 {[%clk 0:01:08]} 24. e3 {[%clk 0:01:01]}  Qd7 {[%clk 0:00:51]} 25. Rad1 {[%clk 0:00:57]}  Bxd3 {[%clk 0:00:46]} 26. Rxd3 {[%clk 0:00:57]}  Qf5 {[%clk 0:00:47]} 27. Rd5 {[%clk 0:00:54]}  e5 {[%clk 0:00:46]} 28. Ng2 {[%clk 0:00:36]}  Nd7 {[%clk 0:00:45]} 29. Be4 {[%clk 0:00:34]}  Qe6 {[%clk 0:00:40]} 30. Qh7# {[%clk 0:00:34]} 1-0


[Site "https://www.chess.com"]

[Event "Titled Tuesday Blitz July 4 Early 2023"]
[White "Peiris, T G M"]
[Black "Politov, Pavel Y."]
[WhiteFideId "9901310"]
[BlackFideId "24110515"]
[WhiteElo "2232"]
[BlackElo "2040"]
[Result "1-0"]
[Round "5"]
[TimeControl "180+2"]
[Date "2023.07.04"]
[WhiteClock "0:00:13"]
[BlackClock "0:00:03"]
[Board "217"]

1. e4 {[%clk 0:03:00]}  c5 {[%clk 0:02:58]} 2. c3 {[%clk 0:03:00]}  Nf6 {[%clk 0:02:56]} 3. e5 {[%clk 0:03:00]}  Nd5 {[%clk 0:02:56]} 4. d4 {[%clk 0:03:01]}  cxd4 {[%clk 0:02:54]} 5. Nf3 {[%clk 0:03:02]}  d6 {[%clk 0:02:50]} 6. cxd4 {[%clk 0:03:02]}  Nc6 {[%clk 0:02:49]} 7. Bc4 {[%clk 0:03:02]}  Nb6 {[%clk 0:02:48]} 8. Bb5 {[%clk 0:03:02]}  dxe5 {[%clk 0:02:46]} 9. Nxe5 {[%clk 0:03:02]}  Bd7 {[%clk 0:02:45]} 10. Bxc6 {[%clk 0:02:56]}  Bxc6 {[%clk 0:02:42]} 11. Nxc6 {[%clk 0:02:56]}  bxc6 {[%clk 0:02:41]} 12. O-O {[%clk 0:02:57]}  e6 {[%clk 0:02:40]} 13. Be3 {[%clk 0:02:55]}  Be7 {[%clk 0:02:38]} 14. Nc3 {[%clk 0:02:49]}  O-O {[%clk 0:02:36]} 15. Ne4 {[%clk 0:02:49]}  Nd5 {[%clk 0:02:31]} 16. Rc1 {[%clk 0:02:47]}  Rc8 {[%clk 0:02:24]} 17. Qa4 {[%clk 0:02:47]}  Qb6 {[%clk 0:02:23]} 18. Rc2 {[%clk 0:02:14]}  Rc7 {[%clk 0:02:07]} 19. Bd2 {[%clk 0:01:56]}  Qb5 {[%clk 0:01:53]} 20. Qxb5 {[%clk 0:01:26]}  cxb5 {[%clk 0:01:54]} 21. Nc5 {[%clk 0:01:27]}  Rfc8 {[%clk 0:01:41]} 22. b4 {[%clk 0:01:27]}  Nb6 {[%clk 0:01:37]} 23. Bc3 {[%clk 0:01:21]}  Nd5 {[%clk 0:01:33]} 24. Be1 {[%clk 0:01:09]}  Nb6 {[%clk 0:01:27]} 25. Re2 {[%clk 0:00:50]}  Bf6 {[%clk 0:01:23]} 26. Re4 {[%clk 0:00:43]}  Rd8 {[%clk 0:01:17]} 27. Bc3 {[%clk 0:00:43]}  Nd5 {[%clk 0:01:16]} 28. Bd2 {[%clk 0:00:43]}  Nb6 {[%clk 0:01:07]} 29. Bf4 {[%clk 0:00:35]}  Re7 {[%clk 0:00:55]} 30. Be5 {[%clk 0:00:32]}  Bxe5 {[%clk 0:00:48]} 31. dxe5 {[%clk 0:00:33]}  Nc4 {[%clk 0:00:45]} 32. Rfe1 {[%clk 0:00:27]}  Rd5 {[%clk 0:00:41]} 33. a4 {[%clk 0:00:21]}  Nd2 {[%clk 0:00:19]} 34. R4e3 {[%clk 0:00:19]}  bxa4 {[%clk 0:00:19]} 35. Nxa4 {[%clk 0:00:19]}  Rb7 {[%clk 0:00:17]} 36. Nc3 {[%clk 0:00:18]}  Rd8 {[%clk 0:00:09]} 37. Rd1 {[%clk 0:00:18]}  Rxb4 {[%clk 0:00:09]} 38. Re2 {[%clk 0:00:17]}  Rbd4 {[%clk 0:00:08]} 39. Rde1 {[%clk 0:00:10]}  h6 {[%clk 0:00:07]} 40. h3 {[%clk 0:00:10]}  Rd3 {[%clk 0:00:07]} 41. Nb5 {[%clk 0:00:09]}  R3d5 {[%clk 0:00:05]} 42. Nd6 {[%clk 0:00:09]}  Nb3 {[%clk 0:00:05]} 43. Re3 {[%clk 0:00:09]}  Nd4 {[%clk 0:00:04]} 44. Ra1 {[%clk 0:00:08]}  Nc2 {[%clk 0:00:04]} 45. Nb7 {[%clk 0:00:01]}  Nxe3 {[%clk 0:00:04]} 46. Nxd8 {[%clk 0:00:02]}  Rxd8 {[%clk 0:00:03]} 47. fxe3 {[%clk 0:00:03]}  Rd5 {[%clk 0:00:04]} 48. Rxa7 {[%clk 0:00:03]}  Rxe5 {[%clk 0:00:04]} 49. Ra3 {[%clk 0:00:04]}  Rd5 {[%clk 0:00:04]} 50. Kf2 {[%clk 0:00:05]}  Rd2+ {[%clk 0:00:04]} 51. Kf3 {[%clk 0:00:06]}  Rc2 {[%clk 0:00:04]} 52. Ra7 {[%clk 0:00:06]}  Kh7 {[%clk 0:00:04]} 53. Rxf7 {[%clk 0:00:06]}  Kg6 {[%clk 0:00:05]} 54. Re7 {[%clk 0:00:07]}  Kf6 {[%clk 0:00:05]} 55. Re8 {[%clk 0:00:08]}  Rc3 {[%clk 0:00:04]} 56. g4 {[%clk 0:00:08]}  Kf7 {[%clk 0:00:03]} 57. Rd8 {[%clk 0:00:07]}  Rc1 {[%clk 0:00:04]} 58. Ke4 {[%clk 0:00:06]}  Kf6 {[%clk 0:00:04]} 59. Rf8+ {[%clk 0:00:05]}  Ke7 {[%clk 0:00:03]} 60. Rf3 {[%clk 0:00:05]}  Rh1 {[%clk 0:00:02]} 61. Ke5 {[%clk 0:00:04]}  Rc1 {[%clk 0:00:02]} 62. e4 {[%clk 0:00:04]}  Rc5+ {[%clk 0:00:02]} 63. Kf4 {[%clk 0:00:04]}  Ra5 {[%clk 0:00:02]} 64. h4 {[%clk 0:00:05]}  Ra4 {[%clk 0:00:02]} 65. g5 {[%clk 0:00:05]}  hxg5+ {[%clk 0:00:02]} 66. hxg5 {[%clk 0:00:05]}  Kf7 {[%clk 0:00:02]} 67. Ke5+ {[%clk 0:00:06]}  Ke7 {[%clk 0:00:02]} 68. g6 {[%clk 0:00:06]}  Ra5+ {[%clk 0:00:02]} 69. Kd4 {[%clk 0:00:06]}  Ra4+ {[%clk 0:00:02]} 70. Ke5 {[%clk 0:00:07]}  Ra5+ {[%clk 0:00:02]} 71. Kf4 {[%clk 0:00:08]}  Ra4 {[%clk 0:00:03]} 72. Kg4 {[%clk 0:00:08]}  Rxe4+ {[%clk 0:00:03]} 73. Kg5 {[%clk 0:00:09]}  Re5+ {[%clk 0:00:03]} 74. Kg4 {[%clk 0:00:09]}  Re4+ {[%clk 0:00:03]} 75. Kg3 {[%clk 0:00:10]}  Re5 {[%clk 0:00:03]} 76. Rf7+ {[%clk 0:00:11]}  Ke8 {[%clk 0:00:03]} 77. Rxg7 {[%clk 0:00:12]}  Rg5+ {[%clk 0:00:03]} 78. Kf4 {[%clk 0:00:12]}  Kf8 {[%clk 0:00:03]} 79. Rf7+ {[%clk 0:00:12]}  Kg8 {[%clk 0:00:04]} 80. Kxg5 {[%clk 0:00:13]}  e5 {[%clk 0:00:04]} 81. Kf6 {[%clk 0:00:12]}  e4 {[%clk 0:00:03]} 82. Ra7 {[%clk 0:00:13]} 1-0


[Site "https://www.chess.com"]

[Event "Titled Tuesday Blitz July 4 Early 2023"]
[White "Sariego Figueredo, Wilfredo"]
[Black "Vargas, Mauricio"]
[WhiteFideId "3500080"]
[BlackFideId "4404572"]
[WhiteElo "2205"]
[BlackElo "1869"]
[Result "0-1"]
[Round "5"]
[TimeControl "180+2"]
[Date "2023.07.04"]
[WhiteClock "0:00:14"]
[BlackClock "0:00:01"]
[Board "219"]

1. d4 {[%clk 0:02:57]}  d5 {[%clk 0:02:15]} 2. Bf4 {[%clk 0:02:57]}  Nf6 {[%clk 0:02:13]} 3. e3 {[%clk 0:02:57]}  g6 {[%clk 0:02:10]} 4. Nf3 {[%clk 0:02:55]}  Bg7 {[%clk 0:02:09]} 5. h4 {[%clk 0:02:50]}  Nbd7 {[%clk 0:02:04]} 6. Be2 {[%clk 0:02:47]}  h6 {[%clk 0:01:56]} 7. c4 {[%clk 0:02:42]}  c6 {[%clk 0:01:56]} 8. Nc3 {[%clk 0:02:41]}  e6 {[%clk 0:01:54]} 9. Bd6 {[%clk 0:02:37]}  Nb6 {[%clk 0:01:31]} 10. c5 {[%clk 0:02:18]}  Nc4 {[%clk 0:01:27]} 11. Bxc4 {[%clk 0:02:10]}  dxc4 {[%clk 0:01:25]} 12. Ne5 {[%clk 0:02:11]}  b5 {[%clk 0:01:15]} 13. Nxc6 {[%clk 0:02:05]}  Qd7 {[%clk 0:01:06]} 14. Ne5 {[%clk 0:01:58]}  Qb7 {[%clk 0:00:58]} 15. O-O {[%clk 0:01:45]}  a6 {[%clk 0:00:56]} 16. c6 {[%clk 0:01:27]}  Qb6 {[%clk 0:00:47]} 17. Bc5 {[%clk 0:01:24]}  Qc7 {[%clk 0:00:43]} 18. Qf3 {[%clk 0:01:09]}  b4 {[%clk 0:00:23]} 19. Bxb4 {[%clk 0:01:01]}  Rb8 {[%clk 0:00:19]} 20. Ba3 {[%clk 0:00:56]}  a5 {[%clk 0:00:17]} 21. Nxc4 {[%clk 0:00:41]}  Ba6 {[%clk 0:00:14]} 22. Nd6+ {[%clk 0:00:38]}  Kd8 {[%clk 0:00:10]} 23. Rfc1 {[%clk 0:00:33]}  h5 {[%clk 0:00:08]} 24. Nce4 {[%clk 0:00:21]}  Ng4 {[%clk 0:00:07]} 25. Nxf7+ {[%clk 0:00:15]}  Kc8 {[%clk 0:00:04]} 26. Nxh8 {[%clk 0:00:14]}  Qh2# {[%clk 0:00:01]} 0-1


[Site "https://www.chess.com"]